bitfinex-derivatives/quotes_SOLF0:USTF0_20250501
["timestamp","ask_amount","ask_price","bid_price","bid_amount"]
[1746070571701,23.76,148.95,148.9,6.7146]
[1746070572103,23.76,148.98,148.87,23.76]
[1746070572602,6.7122,148.96,148.92,6.7135]
[1746070574001,6.7122,148.96,148.93,6.7135]
[1746070574500,6.7119,148.97,148.87,23.76]
[1746070574702,6.7119,148.97,148.94,6.7129]
[1746070575602,30.4714,148.98,148.95,6.7125]
[1746070576799,6.7117,148.97,148.95,6.7125]
[1746070577102,23.76,148.98,148.95,6.7125]
[1746070578203,6.7117,148.97,148.95,6.7125]
[1746070579500,23.76,148.98,148.96,6.712]
[1746070579704,7.11100268,149.0,148.92,6.0872]
[1746070579904,23.76,148.99,148.92,6.0872]
[1746070580403,6.7107,149.0,148.92,6.0872]
[1746070580606,6.7101,149.01,148.98,6.7111]
[1746070581305,30.4696,149.02,148.99,6.7108]
[1746070582306,23.76,149.02,148.97,6.7114]
[1746070583207,6.7105,149.0,148.97,6.7114]
[1746070586007,6.7105,149.0,148.98,6.7112]
[1746070586207,6.7105,149.0,148.95,23.76]
[1746070586809,6.7105,149.0,148.98,6.7112]
[1746070587908,6.7105,149.0,148.97,6.7115]
[1746070591313,30.4696,149.02,148.99,6.7108]
[1746070591810,30.4696,149.02,148.95,23.76]
[1746070592011,30.4696,149.02,148.98,6.7109]
[1746070592211,30.4696,149.02,148.95,23.76]
[1746070592411,30.4696,149.02,148.99,6.7107]
[1746070596512,23.76,149.02,148.95,23.76]
[1746070597416,6.7103,149.01,148.98,6.7112]
[1746070598016,6.71,149.01,148.95,23.76]
[1746070598219,23.76,149.02,148.95,23.76]
[1746070598406,23.72,149.05,148.95,23.76]
[1746070598608,6.709,149.04,148.95,23.76]
[1746070598812,23.72,149.05,148.95,23.76]
[1746070599621,6.7097,149.02,148.99,6.7105]
[1746070601425,6.709,149.03,148.95,23.76]
[1746070602221,6.709,149.03,149.0,6.7102]
[1746070605925,6.7087,149.04,149.01,6.7096]
[1746070607127,6.7087,149.04,149.01,18.7596]
[1746070610825,30.4282,149.05,149.02,6.7091]
[1746070611029,23.72,149.05,149.01,12.05]
[1746070611228,23.72,149.08,149.01,12.05]
[1746070611424,6.7076,149.07,149.03,6.7087]
[1746070611625,6.7076,149.07,149.01,12.05]
[1746070613230,6.7076,149.07,149.04,6.7085]
[1746070614235,6.7076,149.07,149.01,12.05]
[1746070614236,6.7077,149.06,149.03,6.7088]
[1746070614438,23.72,149.08,149.01,12.05]
[1746070614633,7.11100268,149.06,149.01,12.05]
[1746070614834,6.7093,149.03,149.01,12.05]
[1746070615238,7.11100268,149.06,149.01,12.05]
[1746070615738,23.72,149.08,149.01,12.05]
[1746070616238,6.7079,149.06,149.03,6.7087]
[1746070618943,6.7074,149.07,149.04,6.7085]
[1746070622340,23.72,149.08,149.06,6.7077]
[1746070622543,30.83100268,149.11,149.01,12.05]
[1746070622843,30.83100268,149.11,149.03,23.72]
[1746070623347,6.7066,149.09,149.06,6.7075]
[1746070623845,6.7068,149.08,149.05,6.708]
[1746070624049,7.11100268,149.09,149.03,23.72]
[1746070624446,6.7077,149.06,149.03,6.7088]
[1746070625048,6.7074,149.07,149.04,6.7085]
[1746070626343,23.72,149.11,149.01,12.05]
[1746070626845,6.7066,149.09,149.06,6.7074]
[1746070630353,6.7068,149.08,149.06,6.7074]
[1746070631453,6.7065,149.09,149.06,6.7074]
[1746070631657,23.72,149.11,149.06,6.7074]
[1746070631847,23.72,149.11,149.05,6.7079]
[1746070632047,6.7068,149.08,149.05,6.7079]
[1746070632546,6.7076,149.07,149.04,6.7084]
[1746070632847,23.72,149.11,149.01,12.05]
[1746070633254,23.72,149.11,149.03,6.7087]
[1746070635156,6.7076,149.07,149.03,6.7087]
[1746070636559,6.7076,149.07,149.04,6.7085]
[1746070637057,6.7077,149.06,149.01,12.05]
[1746070637355,6.7077,149.06,149.03,6.7088]
[1746070638457,23.72,149.11,149.01,12.05]
[1746070639058,6.7075,149.07,149.04,6.7083]
[1746070639460,23.72,149.11,149.01,12.05]
[1746070639657,6.7088,149.04,149.01,18.7598]
[1746070641159,6.7088,149.04,149.01,12.05]
[1746070641361,6.7092,149.03,149.01,12.05]
[1746070641961,6.7088,149.04,149.01,18.7599]
[1746070642658,6.709,149.03,149.01,12.05]
[1746070643163,7.11100268,149.06,149.01,12.05]
[1746070643662,6.7088,149.04,149.01,18.7599]
[1746070645964,6.7083,149.05,149.02,6.7094]
[1746070646163,30.77100268,149.07,149.01,12.05]
[1746070646462,6.7082,149.05,149.02,6.7092]
[1746070647064,6.7079,149.06,149.02,6.7092]
[1746070647460,6.7079,149.06,149.03,6.709]
[1746070649566,6.7081,149.05,149.02,6.7093]
[1746070649960,23.66,149.07,148.99,23.66]
[1746070651168,6.7078,149.06,149.03,6.7089]
[1746070653276,6.7081,149.05,149.02,6.7092]
[1746070654371,6.7078,149.06,149.03,6.7089]
[1746070655473,11.2471835,149.06,149.03,6.7089]
[1746070659281,4.5393835,149.06,149.04,6.7085]
[1746070659577,28.1993835,149.07,149.01,4.5393835]
[1746070659778,28.1993835,149.07,149.05,6.7079]
[1746070661677,28.1993835,149.07,149.06,6.7077]
[1746070661979,4.5393835,149.09,149.06,6.7077]
[1746070662479,11.2457835,149.09,149.06,6.7077]
[1746070662872,4.5393835,149.07,149.02,6.1043]
[1746070663073,4.5393835,149.05,148.99,23.66]
[1746070663274,4.5393835,149.03,148.99,23.66]
[1746070663479,11.2487835,149.03,148.99,6.7106]
[1746070663679,4.5393835,149.03,148.99,6.7106]
[1746070663979,11.2485835,149.03,149.0,6.7103]
[1746070664781,6.7095,149.02,148.99,6.7106]
[1746070668382,30.71559283,149.06,148.98,6.711]
[1746070669185,6.7099,149.01,148.98,6.711]
[1746070669483,30.71559283,149.06,148.97,6.7115]
[1746070670781,30.71559283,149.06,148.98,6.7112]
[1746070671482,6.7099,149.02,148.98,6.7112]
[1746070672882,6.7099,149.02,148.99,6.7108]
[1746070673481,30.71559283,149.06,148.99,6.7108]
[1746070673687,6.7092,149.03,149.0,6.7103]
[1746070673882,30.71559283,149.06,148.96,23.62]
[1746070674186,6.7083,149.05,149.02,6.7093]
[1746070675187,23.62,149.06,148.96,30.71559283]
[1746070675188,6.7086,149.04,149.01,6.7098]
[1746070676486,6.709,149.03,149.0,6.7102]
[1746070677388,6.7095,149.02,148.99,6.7107]
[1746070677789,23.62,149.06,148.99,6.7107]
[1746070677983,6.7092,149.03,148.99,6.7107]
[1746070678683,23.62,149.06,148.98,6.711]
[1746070679887,6.7097,149.02,148.98,6.711]
[1746070680192,6.7097,149.02,148.99,6.7108]
[1746070681291,6.7086,149.04,148.96,23.62]
[1746070681479,6.7086,149.04,148.96,30.71559283]
[1746070682090,30.3281,149.06,148.97,14.53]
[1746070682290,23.62,149.06,148.97,14.53]
[1746070682890,6.7086,149.04,149.01,6.7096]
[1746070684190,23.62,149.06,148.97,14.53]
[1746070684990,6.7092,149.03,148.99,6.7104]
[1746070685590,6.7092,149.03,149.0,6.7102]
[1746070689591,6.7092,149.03,148.97,14.53]
[1746070689592,6.7088,149.04,148.97,14.53]
[1746070690193,6.7088,149.04,149.0,6.71]
[1746070690390,6.709,149.03,149.0,6.71]
[1746070693496,6.7095,149.02,148.99,6.7106]
[1746070693693,23.62,149.06,148.97,14.53]
[1746070697100,6.7087,149.04,148.97,14.53]
[1746070697501,23.62,149.06,148.97,14.53]
[1746070697802,30.3279,149.06,149.03,6.7089]
[1746070698800,30.3279,149.06,149.04,6.7085]
[1746070699401,30.3279,149.06,148.97,14.53]
[1746070699402,23.62,149.06,148.97,14.53]
[1746070700002,6.7091,149.03,149.0,6.71]
[1746070700802,6.7091,149.03,149.01,6.7099]
[1746070701102,6.7087,149.04,149.01,6.7099]
[1746070701603,30.3278,149.06,149.03,6.709]
[1746070701793,23.62,149.06,148.97,14.53]
[1746070702199,23.62,149.06,148.97,23.04390639]
[1746070702397,23.62,149.06,149.03,6.7086]
[1746070703104,30.3277,149.06,149.04,6.7085]
[1746070703402,30.3277,149.06,149.0,23.62]
[1746070703803,30.3277,149.06,149.03,6.7089]
[1746070705301,23.62,149.06,149.0,23.62]
[1746070705599,23.62,149.06,149.01,6.067]
[1746070706306,23.62,149.06,149.04,6.7083]
[1746070707001,6.7069,149.08,149.01,6.067]
[1746070707505,23.62,149.1,149.01,6.067]
[1746070707901,23.62,149.1,149.08,6.7065]
[1746070708806,30.3259,149.1,149.08,6.7065]
[1746070709006,23.62,149.1,149.04,23.62]
[1746070709201,23.62,149.1,149.01,29.687]
[1746070709601,23.62,149.1,149.04,6.7082]
[1746070710003,23.62,149.1,149.03,6.7089]
[1746070710606,6.7075,149.07,149.03,6.7089]
[1746070711005,6.7075,149.07,149.04,6.7085]
[1746070712107,6.7069,149.08,149.04,6.7085]
[1746070714705,6.7073,149.07,149.04,6.7085]
[1746070715108,6.7073,149.07,149.03,6.7088]
[1746070715303,23.62,149.1,149.03,6.7088]
[1746070715508,6.7077,149.06,149.01,29.687]
[1746070715713,6.7077,149.06,149.03,6.709]
[1746070716011,23.62,149.06,148.98,23.62]
[1746070716309,8.51390639,149.05,148.98,23.62]
[1746070717008,6.709,149.03,148.99,6.7105]
[1746070717907,6.709,149.03,149.0,6.7103]
[1746070719009,6.709,149.03,148.99,6.7106]
[1746070722915,8.51390639,149.05,148.97,21.2413]
[1746070723210,32.11390639,149.02,148.97,14.53]
[1746070723402,6.7106,149.0,148.97,14.53]
[1746070723604,23.6,149.01,148.97,14.53]
[1746070724511,6.7109,148.99,148.97,14.53]
[1746070725111,6.7109,148.99,148.95,6.7123]
[1746070726916,6.7114,148.98,148.94,30.3129]
[1746070727809,6.7114,148.98,148.94,6.7129]
[1746070729312,6.7114,148.98,148.95,6.7125]
[1746070730715,6.711,148.99,148.95,6.7125]
[1746070732010,6.711,148.99,148.96,6.7121]
[1746070733515,6.711,148.99,148.95,6.7124]
[1746070734918,6.7113,148.98,148.95,6.7124]
[1746070735119,32.11924443,149.01,148.91,23.62]
[1746070735519,6.7122,148.96,148.93,6.7133]
[1746070736620,6.7122,148.96,148.92,6.7138]
[1746070736819,23.62,148.97,148.88,23.62]
[1746070737521,6.7128,148.95,148.91,6.714]
[1746070738822,6.7128,148.95,148.92,6.714]
[1746070742827,30.3321,148.97,148.88,23.62]
[1746070743020,30.3321,148.97,148.88,32.13924443]
[1746070743215,23.62,148.97,148.88,32.13924443]
[1746070743424,23.62,148.97,148.96,6.7122]
[1746070745329,6.7109,148.99,148.96,6.7122]
[1746070747033,30.3305,149.0,148.96,6.7122]
[1746070747233,30.3305,149.0,148.92,23.62]
[1746070747629,23.62,149.0,148.92,23.62]
[1746070747935,23.62,149.0,148.93,5.8958]
[1746070748331,6.7115,148.98,148.95,6.7126]
[1746070748532,6.7115,148.98,148.93,5.8958]
[1746070748734,23.62,149.0,148.93,5.8958]
[1746070748932,6.7113,148.98,148.94,6.7128]
[1746070753435,6.7117,148.97,148.93,12.6091]
[1746070754337,6.7123,148.96,148.93,12.6091]
[1746070754535,23.62,149.0,148.93,5.8958]
[1746070754935,6.7111,148.99,148.93,5.8958]
[1746070755138,6.7111,148.99,148.95,6.7124]
[1746070756040,6.7113,148.98,148.95,6.7124]
[1746070758737,30.3307,149.0,148.93,5.8958]
[1746070759442,30.3307,149.0,148.97,6.7114]
[1746070759737,6.711,148.99,148.93,5.8958]
[1746070760637,6.7113,148.98,148.93,5.8958]
[1746070760837,23.62,149.0,148.93,5.8958]
[1746070761140,6.7116,148.98,148.95,6.7123]
[1746070761343,23.62,149.0,148.93,5.8958]
[1746070761841,6.7111,148.99,148.96,6.7121]
[1746070763246,30.3304,149.0,148.97,6.7117]
[1746070765443,23.62,149.03,148.98,6.7109]
[1746070766744,6.7099,149.01,148.98,6.7109]
[1746070773152,6.7099,149.01,148.97,6.7115]
[1746070775656,6.7104,149.0,148.97,6.7115]
[1746070779949,6.7104,149.0,148.96,6.7119]
[1746070780144,6.7104,149.0,148.97,15.46]
[1746070780955,6.7104,149.0,148.97,22.1716]
[1746070781658,23.62,149.03,148.97,15.46]
[1746070781857,8.51924443,149.01,148.97,15.46]
[1746070782249,8.51924443,148.98,148.92,30.3338]
[1746070782559,32.11924443,148.98,148.92,23.62]
[1746070784266,6.7124,148.96,148.93,6.7134]
[1746070785463,6.7119,148.97,148.93,6.7134]
[1746070785652,6.7119,148.97,148.94,6.713]
[1746070785855,32.11924443,148.98,148.92,23.62]
[1746070785856,23.6,148.98,148.92,23.62]
[1746070786059,23.6,149.01,148.93,3.9719]
[1746070786756,6.7104,149.0,148.96,6.7121]
[1746070787361,6.7109,148.99,148.96,6.7121]
[1746070787562,23.6,149.01,148.95,6.7125]
[1746070788163,6.7111,148.99,148.95,6.7125]
[1746070789159,6.7111,148.99,148.96,6.712]
[1746070789566,6.7111,148.99,148.94,2.1115]
[1746070789763,6.7111,148.99,148.96,6.7121]
[1746070789962,6.7111,148.99,148.94,2.1115]
[1746070791066,6.7114,148.98,148.95,6.7124]
[1746070792568,23.6,149.01,148.94,8.8244]
[1746070792970,23.6,149.01,148.94,2.1115]
[1746070793272,6.7108,148.99,148.95,6.7125]
[1746070794173,6.7113,148.98,148.95,6.7125]
[1746070794670,6.711,148.99,148.95,6.7125]
[1746070795365,6.7106,149.0,148.96,6.7122]
[1746070795569,23.6,149.01,148.96,6.7122]
[1746070795870,23.6,149.01,148.97,6.7117]
[1746070796671,6.7106,149.0,148.97,6.7117]
[1746070797073,23.6,149.01,148.94,2.1115]
[1746070797568,23.6,149.01,148.98,6.711]
[1746070798071,30.31,149.01,148.98,6.711]
[1746070801678,23.6,149.01,148.98,6.711]
[1746070802379,6.7097,149.02,148.98,6.711]
[1746070802879,6.7097,149.02,148.99,6.7107]
[1746070803177,6.7091,149.03,148.96,23.6]
[1746070803379,23.6,149.04,148.96,23.6]
[1746070803581,6.7085,149.05,148.96,23.6]
[1746070803877,23.6,149.07,149.02,6.7092]
[1746070804084,6.7079,149.06,149.02,6.7092]
[1746070804289,23.6,149.07,149.02,6.7092]
[1746070804581,6.7081,149.05,149.02,6.7092]
[1746070805182,6.7078,149.06,149.03,6.709]
[1746070806190,6.7082,149.05,149.0,23.6]
[1746070806482,23.6,149.07,149.0,23.6]
[1746070806788,6.7081,149.05,149.01,6.7096]
[1746070807187,23.6,149.07,149.0,23.6]
[1746070807689,23.6,149.07,149.0,36.27]
[1746070807886,8.51924443,149.06,149.0,36.27]
[1746070808090,8.51924443,149.06,149.0,12.67]
[1746070808391,6.7092,149.03,149.0,12.67]
[1746070808690,23.6,149.02,148.88,31.51370964]
[1746070808890,8.51924443,148.98,148.88,2.0881]
[1746070809187,32.11924443,148.98,148.88,2.0881]
[1746070809388,6.7123,148.96,148.9,6.7144]
[1746070809577,6.7123,148.96,148.89,23.6]
[1746070810288,6.7123,148.96,148.91,6.7141]
[1746070810488,38.83064443,148.98,148.89,23.6]
[1746070810689,32.11924443,148.98,148.89,23.6]
[1746070810989,32.11924443,148.98,148.93,6.7132]
[1746070811189,23.6,148.98,148.89,23.6]
[1746070811392,32.23924443,149.01,148.89,23.6]
[1746070811591,6.7107,149.0,148.95,6.7123]
[1746070812890,8.51924443,149.03,148.93,23.72]
[1746070813190,8.51924443,149.03,148.94,6.1227]
[1746070813391,6.7098,149.02,148.97,6.7114]
[1746070813592,8.51924443,149.03,148.94,6.1227]
[1746070813996,23.72,149.04,148.99,6.7107]
[1746070814389,23.72,149.04,148.97,23.72]
[1746070814585,23.72,149.04,149.0,6.71]
[1746070814790,8.51924443,149.06,148.97,23.72]
[1746070816196,6.7086,149.04,149.0,6.71]
[1746070818198,6.7082,149.05,149.0,6.71]
[1746070820003,6.7086,149.04,149.0,6.71]
[1746070820296,32.23924443,149.03,148.94,6.1227]
[1746070820497,23.72,149.02,148.94,6.1227]
[1746070820699,23.72,149.02,148.96,6.7121]
[1746070821098,6.7103,149.01,148.96,6.7121]
[1746070821498,23.72,149.02,148.96,6.7121]
[1746070822096,23.72,149.02,148.94,29.8427]
[1746070822097,6.7123,148.96,148.84,889.64]
[1746070822304,8.51924443,148.97,148.87,3.9433]
[1746070822695,6.7122,148.96,148.91,6.7141]
[1746070823096,8.51924443,148.97,148.89,23.72]
[1746070823604,13.64239837,148.97,148.89,23.72]
[1746070824101,6.7137,148.93,148.89,30.435]
[1746070826696,6.7132,148.94,148.89,30.435]
[1746070826896,6.7132,148.94,148.9,6.7147]
[1746070829304,6.7127,148.95,148.91,6.714]
[1746070830004,6.7122,148.96,148.92,6.7138]
[1746070830707,6.7118,148.97,148.93,6.7134]
[1746070831298,23.72,148.98,148.89,23.72]
[1746070831805,23.72,148.98,148.91,6.714]
[1746070832511,6.7129,148.95,148.91,6.714]
[1746070833213,23.72,148.98,148.89,23.72]
[1746070833709,6.7114,148.98,148.94,6.7128]
[1746070834103,23.72,149.01,148.93,23.72]
[1746070834403,23.72,149.01,148.94,2.0053]
[1746070835209,6.7114,148.98,148.94,2.0053]
[1746070835903,13.64239837,149.0,148.89,23.72]
[1746070836409,23.72,149.01,148.89,23.72]
[1746070836907,13.64239837,148.99,148.89,23.72]
[1746070837408,13.64239837,148.93,148.85,2.0594]
[1746070837604,23.72,148.92,148.82,23.72]
[1746070838198,23.72,148.92,148.82,37.36239837]
[1746070838503,23.72,148.96,148.86,6.7166]
[1746070838803,37.36239837,148.96,148.86,23.72]
[1746070839508,13.64239837,148.93,148.81,29.8969]
[1746070839714,23.72,148.92,148.81,29.8969]
[1746070840616,6.7141,148.92,148.87,6.7158]
[1746070840802,23.72,148.95,148.86,23.72]
[1746070841006,23.72,148.95,148.87,1.9983]
[1746070841508,25.6748,148.98,148.88,3.9798]
[1746070842214,6.7127,148.95,148.9,6.7145]
[1746070842409,6.7127,148.95,148.9,30.8145]
[1746070842815,6.7127,148.95,148.91,6.7144]
[1746070843214,6.7127,148.95,148.9,24.1]
[1746070843714,23.72,148.98,148.92,6.7139]
[1746070844512,6.7118,148.97,148.93,6.7135]
[1746070846310,6.7118,148.97,148.9,24.1]
[1746070846311,6.7113,148.98,148.94,6.713]
[1746070847215,24.1,149.01,148.94,30.813]
[1746070847615,6.7108,148.99,148.94,30.813]
[1746070848315,6.7113,148.98,148.94,30.813]
[1746070848515,6.7113,148.98,148.94,24.1]
[1746070850216,6.7113,148.98,148.94,30.813]
[1746070855009,6.7113,148.98,148.95,6.7126]
[1746070855514,24.1,149.01,148.94,24.1]
[1746070855720,6.7105,149.0,148.96,6.7119]
[1746070856620,24.1,149.04,148.95,6.0491]
[1746070857019,6.7101,149.01,148.97,6.7117]
[1746070857516,24.1,149.04,148.97,6.7117]
[1746070858220,6.7104,149.0,148.97,6.7117]
[1746070859216,24.1,149.04,148.98,6.7111]
[1746070859619,24.1,149.04,148.95,6.0491]
[1746070859822,6.7099,149.01,148.97,6.7115]
[1746070860121,24.1,149.04,148.95,6.0491]
[1746070860323,6.7105,149.0,148.97,6.7116]
[1746070861431,24.1,149.04,148.95,6.0491]
[1746070862026,6.7107,149.0,148.96,6.712]
[1746070862229,6.7107,149.0,148.95,6.0491]
[1746070862426,24.1,149.04,148.95,6.0491]
[1746070862626,6.7101,149.01,148.97,6.7114]
[1746070863022,6.7101,149.01,148.95,6.0491]
[1746070863023,6.7101,149.01,148.98,6.7112]
[1746070863227,6.7101,149.01,148.95,6.0491]
[1746070863728,6.7101,149.01,148.97,6.7114]
[1746070864231,24.1,149.04,148.97,6.7114]
[1746070865025,6.7101,149.01,148.97,6.7114]
[1746070865332,6.7101,149.01,148.98,6.7112]
[1746070866235,24.1,149.04,148.95,6.0491]
[1746070866531,24.1,149.04,148.96,24.1]
[1746070866731,6.7093,149.03,148.99,6.7105]
[1746070866928,24.1,149.04,148.96,24.1]
[1746070867121,24.1,149.07,148.96,24.1]
[1746070868232,6.7086,149.04,149.01,6.7098]
[1746070868730,24.1,149.07,149.01,6.7098]
[1746070868928,6.7083,149.05,149.01,6.7098]
[1746070869231,6.7083,149.05,149.02,6.7094]
[1746070869431,6.7078,149.06,149.0,24.1]
[1746070869734,24.1,149.07,149.01,2.0104]
[1746070869937,6.7084,149.05,149.01,2.0104]
[1746070870232,6.7084,149.05,149.01,8.72]
[1746070870633,6.7086,149.04,149.01,8.72]
[1746070870835,24.1,149.07,149.02,6.7093]
[1746070871034,24.1,149.07,149.01,2.0104]
[1746070871437,24.1,149.1,149.01,2.0104]
[1746070871636,7.09642228,149.08,149.01,2.0104]
[1746070872034,6.7077,149.06,149.02,6.7094]
[1746070872739,6.7077,149.06,149.01,8.7203]
[1746070873541,6.7082,149.05,149.01,8.7203]
[1746070874544,6.7086,149.04,149.01,8.7203]
[1746070874842,7.09642228,149.08,149.01,8.7203]
[1746070875138,6.7083,149.05,149.01,8.7203]
[1746070876541,6.7087,149.04,149.01,8.7203]
[1746070878041,6.7091,149.03,149.01,2.0104]
[1746070878842,7.09642228,149.08,149.01,8.7199]
[1746070879545,6.7088,149.04,149.01,8.7199]
[1746070879747,7.09642228,149.08,149.01,2.0104]
[1746070880042,6.7088,149.04,149.01,2.0104]
[1746070880443,7.09642228,149.08,149.01,8.72]
[1746070881039,7.09642228,149.08,148.95,11.11962228]
[1746070881040,7.09642228,149.05,148.95,27.9432]
[1746070881241,31.01642228,149.05,148.95,27.9432]
[1746070881438,6.7111,148.99,148.95,27.9432]
[1746070881741,6.7111,148.99,148.95,34.6557]
[1746070883648,7.09642228,149.02,148.95,27.9432]
[1746070884146,7.09642228,149.02,148.95,23.92]
[1746070884549,6.7119,148.97,148.95,23.92]
[1746070885249,6.7114,148.98,148.95,23.92]
[1746070885748,6.7104,149.0,148.97,6.7117]
[1746070886049,6.7104,149.0,148.95,23.92]
[1746070887247,6.7104,149.0,148.96,6.712]
[1746070888149,6.71,149.01,148.95,23.92]
[1746070888451,31.01642228,149.05,148.95,23.92]
[1746070888750,6.7098,149.02,148.95,23.92]
[1746070889053,6.7098,149.02,148.98,6.7109]
[1746070890853,6.7101,149.01,148.98,6.7109]
[1746070893053,6.7095,149.02,148.99,6.7108]
[1746070893449,23.92,149.05,148.95,23.92]
[1746070893944,23.92,149.05,148.96,2.0666]
[1746070894457,6.7095,149.02,148.98,6.711]
[1746070900155,6.7099,149.01,148.98,6.711]
[1746070902560,6.7096,149.02,148.98,6.711]
[1746070903358,6.71,149.01,148.98,6.711]
[1746070905460,6.7108,148.99,148.96,23.8]
[1746070905862,6.7108,148.99,148.96,30.5119]
[1746070907661,6.7105,149.0,148.97,6.7117]
[1746070908362,6.7105,149.0,148.96,30.512]
[1746070909164,6.7105,149.0,148.97,6.7116]
[1746070910163,31.01552347,149.05,148.99,6.7108]
[1746070910459,6.7098,149.02,148.99,6.7108]
[1746070910664,31.01552347,149.05,148.98,6.7111]
[1746070911665,6.7101,149.01,148.98,6.7111]
[1746070911964,31.01552347,149.05,148.96,23.8]
[1746070913566,6.7091,149.03,148.96,23.8]
[1746070914265,6.7091,149.03,148.99,6.7105]
[1746070914567,6.7096,149.02,148.99,6.7105]
[1746070914765,31.01552347,149.05,148.96,23.8]
[1746070916169,6.7106,149.0,148.97,6.7116]
[1746070920273,6.7106,149.0,148.96,30.512]
[1746070920676,6.7106,149.0,148.96,23.8]
[1746070921169,6.7101,149.01,148.97,6.7114]
[1746070921772,6.7101,149.01,148.98,6.7112]
[1746070922868,30.5094,149.03,148.96,23.8]
[1746070923270,23.8,149.03,148.96,23.8]
[1746070923571,6.7096,149.02,148.98,6.7112]
[1746070925876,23.8,149.03,148.98,6.7112]
[1746070926174,6.7099,149.01,148.96,23.8]
[1746070927175,6.7099,149.01,148.98,6.7111]
[1746070928073,23.8,149.03,148.96,23.8]
[1746070928270,23.8,149.06,148.97,3.9067]
[1746070928679,6.7088,149.04,149.01,6.7099]
[1746070929577,6.7088,149.04,149.0,6.7102]
[1746070929772,6.709,149.03,149.0,6.7102]
[1746070931578,6.7096,149.02,148.99,6.7106]
[1746070935279,23.8,149.06,148.97,3.9067]
[1746070935480,23.8,149.06,148.97,27.5467]
[1746070937183,23.8,149.06,148.97,34.2581]
[1746070937484,23.8,149.06,148.97,27.5467]
[1746070939784,6.7088,149.04,149.0,6.71]
[1746070940791,6.709,149.03,149.0,6.71]
[1746070943888,23.8,149.06,148.99,6.7107]
[1746070944185,23.8,149.06,148.97,27.5467]
[1746070944384,6.7089,149.04,149.0,6.7101]
[1746070944778,6.7089,149.04,148.97,27.5467]
[1746070945277,23.8,149.06,148.97,27.5467]
[1746070945586,23.8,149.06,149.01,6.7097]
[1746070945987,23.64,149.09,148.98,7.09552347]
[1746070946280,23.64,149.09,149.03,6.7088]
[1746070946684,23.64,149.09,149.01,23.64]
[1746070946685,30.73552347,149.09,149.01,23.64]
[1746070947085,6.71,149.01,148.99,1.9084]
[1746070947286,6.71,149.01,148.97,34.2581]
[1746070948785,23.64,149.05,148.97,34.2581]
[1746070949185,23.64,149.05,148.97,27.5467]
[1746070949389,6.7097,149.02,148.97,27.5467]
[1746070950086,6.7097,149.02,148.98,6.7111]
[1746070950681,6.71,149.01,148.98,6.7111]
[1746070951089,23.64,149.05,148.98,6.7111]
[1746070951288,6.7097,149.02,148.98,6.7111]
[1746070952692,6.71,149.01,148.97,34.2582]
[1746070953692,6.7104,149.0,148.97,27.5467]
[1746070953891,6.7104,149.0,148.97,23.64]